Cogmind - Beta 14 @@@ ROGUE MODE // 2025.03.15 @ 13:11:55 Player: Cog on my mind Result: Destroyed by H-77 Assassin with Coil Gun Performance ------------- Evolutions (6) 3000 Regions Visited (23) 4600 Robots Destroyed (303) 1515 Value Destroyed (10732) 10732 Prototype IDs (46) 920 Alien Tech Used (1) 200 Bonus (7455) 7455 TOTAL SCORE: 28422 Bonus ------- High Alert Combat Kills 2063 Follower Combat Kills 3328 Network Hubs Disabled 400 Registered with UFD 300 Met Zhirov 300 Built Enhanced Grunts 300 A7 Reached Mainframe 300 Met R17 at Cetus 500 Friendly Fire -36 Cogmind --------- Core Integrity 0/1150 Matter 292/300 Energy 54/100 System Corruption 3% Temperature Cool (0) Movement Core (100) Ox1 Location -4/Factory Parts ------- > --- POWER (2) -------- (None) > --- PROPULSION (8) --- (None) > --- UTILITY (7) ------ Large Storage Unit Gravity Neutralizer Advanced Visual Processing Unit Advanced Signal Interpreter Hacking Suite > --- WEAPON (2) ------- (None) > --- INVENTORY (15) --- Light Antimatter Reactor High-capacity Storage Unit Advanced Energy Well (500) Matter Compressor (250) Authchip [Device] Authchip [Processor] Authchip [Weapon] Transdimensional Reconstructor Peak State ------------ > --- POWER ------------ Light Fission Core > --- PROPULSION ------- Flexi-carbon Leg Experimental Myomer Leg Experimental Myomer Leg Experimental Myomer Leg Experimental Myomer Leg Experimental Myomer Leg > --- UTILITY ---------- High-capacity Storage Unit Advanced Signal Interpreter Advanced Targeting Computer Powered Armor Improved Hacking Suite System Restoration Module > --- WEAPON ----------- Long-range Phase Cannon Light Antimatter Cannon > --- INVENTORY -------- High-density Centrium Wheel High-density Centrium Wheel Coolant Network Large Storage Unit Compact Matter Pod Machine Analyzer Microactuators Hacking Suite Hacking Suite Hacking Suite System Restoration Module System Restoration Module Overtuned Railgun Precision Rocket Launcher CPS Tube Great Axe DRS Beacon Botcube [Rating: 103] Favorites ----------- Power Ion Engine Engine Ion Engine Power Core Micro Fission Core Reactor Light Antimatter Reactor Propulsion Armored Treads Treads Armored Treads Leg Experimental Myomer Leg Wheel Compact Wheel Hover Unit Gravmag Array Flight Unit Impulse Thruster Utility High-capacity Storage Unit Device Seismic Detector Storage High-capacity Storage Unit Processor Advanced Signal Interpreter Hackware Hacking Suite Protection Hardened Medium Armor Plating Weapon Enhanced Autogun Energy Gun Backup Laser III Energy Cannon Long-range Phase Cannon Ballistic Gun Enhanced Autogun Ballistic Cannon Gauss Cannon Launcher Grenade Launcher Special Weapon CPS Tube Slashing Weapon Ionic Axe Special Melee Weapon Improved Datajack Build | -11 -10 -10 -10 -9 -8 -8 -8 -8 -6 -6 -6 -6 -6 -6 -6 -5 -5 -5 -5 -5 -5 -4 -4 ------- Run | Yrd Mat Min Exi Min Mat Sto Rec Scr Fac Was Fac Ext Cet Arc Hub Fac Was Fac Upp Upp Zhi Pro Fac Slots Evolved 12 | . . . . . 4 . . . 4 . . . . . . 2 . . . . . . 2 Power 1 | . . . . . . . . . . . . . . . . . . . . . . . 1 Propulsion 6 | . . . . . 2 . . . 2 . . . . . . 1 . . . . . . 1 Utility 5 | . . . . . 2 . . . 2 . . . . . . 1 . . . . . . . Weapon . | . . . . . . . . . . . . . . . . . . . . . . . . Parts Attached 309 | 7 9 5 . 1 56 24 . 5 57 1 6 6 5 16 3 26 1 32 8 4 6 3 28 Power 31 | 1 1 . . . 5 1 . 2 4 . 2 1 1 . . 2 . 3 1 . 2 1 4 Engine 11 | 1 1 . . . 3 1 . 2 1 . 1 . 1 . . . . . . . . . . Core 10 | . . . . . 2 . . . 3 . . 1 . . . . . 2 1 . 1 . . Reactor 10 | . . . . . . . . . . . 1 . . . . 2 . 1 . . 1 1 4 Propulsion 108 | 2 3 . . . 24 5 . . 20 1 3 2 1 7 . 8 1 14 2 1 1 . 13 Treads 31 | 2 3 . . . 20 5 . . . . . . . . . . . 1 . . . . . Leg 25 | . . . . . . . . . 11 1 3 2 1 . . . . 1 . . 1 . 5 Wheel 10 | . . . . . 3 . . . 1 . . . . . . . . 4 . . . . 2 Hover 41 | . . . . . 1 . . . 8 . . . . 7 . 8 1 8 2 1 . . 5 Flight 1 | . . . . . . . . . . . . . . . . . . . . . . . 1 Utility 88 | 2 2 . . . 13 3 . 3 18 . 1 3 3 6 1 6 . 9 4 2 3 . 9 Device 36 | 1 . . . . 4 . . . 8 . 1 3 2 1 . 3 . 6 3 . . . 4 Storage 10 | 1 2 . . . 1 . . . 2 . . . . 1 . 1 . 1 . . 1 . . Processor 8 | . . . . . . . . . 3 . . . . . 1 1 . . 1 1 . . 1 Hackware 12 | . . . . . 1 . . . 3 . . . 1 3 . 1 . . . . . . 3 Protection 22 | . . . . . 7 3 . 3 2 . . . . 1 . . . 2 . 1 2 . 1 Artifact . | . . . . . . . . . . . . . . . . . . . . . . . . Weapon 82 | 2 3 5 . 1 14 15 . . 15 . . . . 3 2 10 . 6 1 1 . 2 2 Energy Gun 1 | . . . . . . . . . . . . . . . 1 . . . . . . . . Energy Cannon 13 | . . . . 1 1 . . . 6 . . . . . 1 1 . 1 . . . 1 1 Ballistic Gun 24 | 2 3 2 . . 5 10 . . . . . . . 1 . . . 1 . . . . . Ballistic Cannon 7 | . . . . . 5 . . . 1 . . . . 1 . . . . . . . . . Launcher 15 | . . 3 . . 3 3 . . 3 . . . . . . 1 . 2 . . . . . Special Weapon 2 | . . . . . . . . . 2 . . . . . . . . . . . . . . Impact Weapon . | . . . . . . . . . . . . . . . . . . . . . . . . Slashing Weapon 18 | . . . . . . 2 . . 2 . . . . 1 . 7 . 2 1 1 . 1 1 Piercing Weapon . | . . . . . . . . . . . . . . . . . . . . . . . . Special Melee Weapon 2 | . . . . . . . . . 1 . . . . . . 1 . . . . . . . Unidentified Prototypes 22 | . . . . . 3 2 . . 7 . 1 . . 2 . 1 . 2 . . 4 . . Parts Lost 89 | . . 1 . . 10 4 . . 9 . . 1 1 . 1 2 . 25 3 1 . . 31 Power 13 | . . . . . 2 . . . . . . 1 . . 1 . . 4 . . . . 5 Propulsion 41 | . . . . . 4 1 . . 4 . . . 1 . . 1 . 11 2 1 . . 16 Utility 24 | . . . . . 4 1 . . 5 . . . . . . 1 . 5 1 . . . 7 Weapon 11 | . . 1 . . . 2 . . . . . . . . . . . 5 . . . . 3 Highest Loss Streak 13 | . . 1 . . 2 1 . . 5 . . 1 1 . 1 1 . 12 3 1 . . 13 To Critical Strikes 5 | . . . . . . . . . . . . . 1 . . . . 1 . . . . 3 Average Slot Usage (%) 92 | . 99 99 100 100 98 94 90 99 96 100 100 99 99 98 100 92 94 71 67 71 69 70 60 Engine 6 | . 13 14 14 14 7 8 9 9 1 6 6 4 5 6 6 . . . . . . . . Treads 18 | . 27 28 28 28 33 36 36 36 . . . . . . . . . 1 . . . . . Leg 7 | . . . . . . . . . 23 40 40 40 40 27 . . . . . . . . 11 Hover 6 | . . . . . . . . . 15 . . . . 12 40 35 35 17 22 22 23 23 6 Device 6 | . 14 14 14 14 11 3 . . 5 6 6 6 5 6 2 4 5 5 6 5 5 5 5 Storage 8 | . 14 14 14 14 9 9 9 9 6 6 6 6 6 6 6 5 5 5 5 5 5 5 5 Processor 5 | . . . . . . . . . 9 13 13 13 8 6 10 13 17 17 13 19 17 17 11 Hackware 6 | . . . . . 1 9 9 9 10 13 13 13 17 19 20 13 11 5 . . . . 4 Protection 6 | . . . . . 14 10 9 17 4 . . . . . . . . 1 . 2 5 5 . Energy Cannon 1 | . . . . 12 2 . . . 3 6 6 6 6 1 . . . . . . . . . Ballistic Gun 8 | . 27 22 14 14 5 11 18 18 . . . . . . . . . 1 . . . . . Ballistic Cannon 2 | . . . . . 10 4 . . 3 6 6 6 6 4 . . . . . . . . . Slashing Weapon 1 | . . . . . . . . . 2 . . . . 4 6 10 11 4 11 7 5 4 4 Peak Build Rating 103 | 7 7 8 8 9 43 43 40 45 103 101 98 93 95 98 74 102 102 103 81 89 94 87 102 Average Rating 52 | 5 6 7 8 8 33 37 40 43 83 99 92 91 91 87 69 94 102 69 73 83 85 86 71 On Entrance 59 | . 7 7 8 8 9 41 40 40 42 97 96 92 92 95 71 65 102 102 70 76 85 86 87 Naked Turns . | . . . . . . . . . . . . . . . . . . . . . . . . Heaviest Build 80 | 15 30 31 31 31 80 69 69 74 74 70 70 71 72 72 50 69 69 75 32 51 51 58 62 Greatest Support 140 | 40 40 40 40 40 112 86 80 80 140 140 140 90 75 75 55 72 72 72 71 71 60 60 125 Greatest Overweight (x) 7 | . . . . . 4 1 . . 2 . . . . 7 . . . 3 . . . . 7 Average Overweight (x) . | . . . . . . . . . . . . . . . . . . . . . . . . Largest Inventory Capacity 20 | 8 15 15 15 15 20 20 20 20 20 20 20 20 20 20 15 20 20 20 15 15 15 15 15 Average Capacity 17 | 7 10 15 15 15 17 20 20 20 17 20 20 20 20 18 15 19 20 18 15 15 15 15 15 Most Carried 20 | . 6 12 12 13 20 20 20 20 20 20 20 20 20 20 15 19 18 20 15 15 15 15 15 Average Carried 15 | . 3 8 11 12 16 19 20 19 16 17 18 19 18 18 15 15 18 15 12 14 14 14 10 Final Capacity 20 | 8 15 15 15 15 20 20 20 20 20 20 20 20 20 15 15 20 20 15 15 15 15 15 15 Final Carried 20 | . 6 11 12 13 20 20 20 20 20 14 20 20 20 15 15 18 18 15 13 15 15 15 8 Class Distribution -------------------- 52% | Mutant 10% | Hacker-Mutant 8% | Commander-Mutant 7% | Scavenger-Mutant 5% | Gladiator 4% | Hacker-Scout 4% | Scout Dominant Class ---------------- Mutant | -10/Materials Mutant | -10/Mines Mutant | -10/Exiles Mutant | -9/Mines Mutant | -8/Materials Mutant | -8/Storage Mutant | -8/Recycling Mutant | -8/Scraptown Hacker-Mutant | -6/Factory Hacker-Mutant | -6/Waste Hacker-Mutant | -6/Factory Hacker-Mutant | -6/Extension Commander-Mutant | -6/Cetus Commander-Mutant | -6/Archives Scavenger-Mutant | -6/Hub_04(d) Hacker-Scout | -5/Factory Hacker-Scout | -5/Waste Hacker-Scout | -5/Factory Scout | -5/Upper Caves Gladiator | -5/Upper Caves Gladiator | -5/Zhirov Gladiator | -4/Proximity Caves Scavenger-Assassin | -4/Factory Resources | -11 -10 -10 -10 -9 -8 -8 -8 -8 -6 -6 -6 -6 -6 -6 -6 -5 -5 -5 -5 -5 -5 -4 -4 ----------- Run | Yrd Mat Min Exi Min Mat Sto Rec Scr Fac Was Fac Ext Cet Arc Hub Fac Was Fac Upp Upp Zhi Pro Fac Matter Collected 8480 | 310 350 228 . 10 2485 1123 68 30 1062 10 197 491 177 188 10 325 . 839 221 64 70 35 187 Remotely . | . . . . . . . . . . . . . . . . . . . . . . . . Salvage Created 12529 | 100 556 44 . . 2627 1267 109 . 1634 . 373 803 155 322 103 678 . 1889 109 280 195 192 1093 Parts 647 | 12 34 3 . . 158 72 5 . 73 . 18 34 4 30 9 28 . 78 10 14 4 8 53 Haulers Intercepted 23 | . 2 . . . 5 5 . . 4 . 1 . . . . 4 . 1 . . . . 1 Recyclers Shooed 8 | 1 . . . . 2 . . . 2 . . 1 . . . . . 2 . . . . . Parts Field Recycled . | . . . . . . . . . . . . . . . . . . . . . . . . Retrieved Matter . | . . . . . . . . . . . . . . . . . . . . . . . . Parts Self-Destructed 28 | . . . . . . . . . . . . . . . . . . . 8 11 3 6 . Prevented . | . . . . . . . . . . . . . . . . . . . . . . . . Kills | -11 -10 -10 -10 -9 -8 -8 -8 -8 -6 -6 -6 -6 -6 -6 -6 -5 -5 -5 -5 -5 -5 -4 -4 ------- Run | Yrd Mat Min Exi Min Mat Sto Rec Scr Fac Was Fac Ext Cet Arc Hub Fac Was Fac Upp Upp Zhi Pro Fac Combat Hostiles Destroyed 197 | . 10 8 . . 56 30 2 . 20 . 3 18 3 . . 3 . 25 2 6 . 2 9 Melee 24 | . . . . . . . . . 1 . . . . . . 1 . 5 2 6 . 2 7 Guns 54 | . 10 2 . . 21 8 2 . . . . . . . . . . 11 . . . . . Cannons 74 | . . . . . 27 12 . . 9 . 2 17 3 . . . . 2 . . . . 2 AOE 41 | . . 6 . . 8 10 . . 8 . 1 . . . . 2 . 6 . . . . . Classes Destroyed 22 | 2 3 1 . . 11 1 . . 1 . . 1 . . . . . . . 1 . 1 . Worker 19 | . 3 1 . . 4 . . . 4 . . . . . 1 2 . 1 . . . . 3 Builder 15 | . . . . . 4 2 . . 3 . 1 . . . . . . 4 . . . . 1 Tunneler 5 | 3 . . . . . . . . . . . . . . 1 1 . . . . . . . Hauler 23 | . 2 . . . 5 5 . . 4 . 1 . . . . 4 . 1 . . . . 1 Recycler 19 | 1 . . . . 5 1 . . 4 . 1 . . . . . . 4 . . . . 3 Minesweeper 1 | . . . . . . . . . . . . . . . . . . . . . . 1 . Mechanic 3 | . . . . . 1 . . . . . . . . . . 1 . 1 . . . . . Operator 16 | . . . . . 2 1 . . 2 . 1 . . 9 . . . . . . . . 1 Watcher 14 | . . . . . 4 1 . . 1 . 1 2 . . 2 2 . . . . . . 1 Swarmer 38 | . . . . . 16 3 . . 4 . . 5 . . . . . 5 . 3 . . 2 Grunt 76 | . 10 . . . 24 16 . . 5 . . 6 . . . 3 . 10 . 1 . 1 . Brawler 2 | . . . . . 1 1 . . . . . . . . . . . . . . . . . Duelist 5 | . . . . . 3 1 . . . . . . . . . . . 1 . . . . . Sentry 30 | . . . . . 8 8 2 . . . 3 5 . . . . . 2 . 1 . 1 . Demolisher 1 | . . . . . . 1 . . . . . . . . . . . . . . . . . Specialist 4 | . . . . . 2 . . . 2 . . . . . . . . . . . . . . Hunter 14 | . . . . . 1 . . . 4 . . . . . . . . 3 . . . . 6 Programmer 12 | . . . . . . . . . 5 . . . . . . . . 4 2 . . . 1 Heavy 1 | . . . . . 1 . . . . . . . . . . . . . . . . . . Behemoth 2 | . . . . . . . . . . . . 2 . . . . . . . . . . . Cetus Guard 3 | . . . . . . . . . . . . . 3 . . . . . . . . . . Assembled 8 | . . 8 . . . . . . . . . . . . . . . . . . . . . Mutant 1 | . . . . . . . . . . . . . . . . . . . . 1 . . . Best Kill Streak 13 | 3 3 2 . . 8 9 1 . 9 . 3 4 2 8 2 3 . 13 2 3 . 1 6 Combat Bots Only 8 | . 3 2 . . 6 8 1 . 5 . 1 4 2 . . 2 . 6 2 3 . 1 2 Max Kills in Single Turn 5 | 1 1 2 . . 3 5 1 . 2 . 2 1 1 1 1 1 . 3 1 1 . 1 1 Gunslinging . | . . . . . . . . . . . . . . . . . . . . . . . . Exploded 4 | . . 2 . . 3 4 . . 2 . 1 . . . . 1 . 2 . . . . . Melee 1 | . . . . . . . . . 1 . . . . . . 1 . 1 1 1 . 1 1 Uniques/NPCs Destroyed . | . . . . . . . . . . . . . . . . . . . . . . . . Combat | -11 -10 -10 -10 -9 -8 -8 -8 -8 -6 -6 -6 -6 -6 -6 -6 -5 -5 -5 -5 -5 -5 -4 -4 -------- Run | Yrd Mat Min Exi Min Mat Sto Rec Scr Fac Was Fac Ext Cet Arc Hub Fac Was Fac Upp Upp Zhi Pro Fac Hostile Shots Fired 1682 | . 43 11 . . 305 127 8 . 236 . 69 111 39 9 16 22 . 256 30 25 . 10 365 Missed 512 | . 10 3 . . 79 33 2 . 77 . 30 40 12 3 7 10 . 68 7 5 . 5 121 Damage Taken 19857 | . 363 184 . . 3511 1832 95 . 2765 45 453 692 845 164 358 289 . 3252 484 399 . 100 4026 Core 2842 | . 65 22 . . 256 174 15 . 197 . 27 86 95 23 . 20 . 581 88 40 . . 1153 Absorbed by Shields 293 | . . . . . . . . . 12 . . 253 28 . . . . . . . . . . Regen/Repaired (Parts) 1582 | . 75 . . . . . . . . 218 255 349 342 120 18 26 . 23 . . . . 156 Core Remaining (%) 52 | 100 . . . 65 . . . 19 . . . . . . 49 . . . . . . 27 . Volleys Fired 691 | 9 41 21 . . 233 111 6 . 63 . 29 52 14 4 2 9 . 78 . . . 7 12 Largest 2 | 2 2 2 . . 2 2 2 . 2 . 2 2 2 2 1 1 . 1 . . . 1 1 Hottest 165 | 40 40 40 . . 100 96 50 . 165 . 165 165 165 165 105 105 . 105 . . . 85 85 Shots Fired 1167 | 18 82 29 . . 458 201 12 . 85 . 44 93 29 8 2 9 . 78 . . . 7 12 Gun 556 | 18 82 16 . . 241 126 12 . . . . . . . . . . 61 . . . . . Cannon 563 | . . . . . 209 71 . . 75 . 44 93 29 8 2 5 . 8 . . . 7 12 Launcher 47 | . . 13 . . 8 4 . . 9 . . . . . . 4 . 9 . . . . . Special 1 | . . . . . . . . . 1 . . . . . . . . . . . . . . Kinetic 904 | 18 82 16 . . 381 197 12 . 46 . 21 51 15 4 . . . 61 . . . . . Thermal 215 | . . . . . 69 . . . 29 . 23 42 14 4 2 5 . 8 . . . 7 12 Explosive 47 | . . 13 . . 8 4 . . 9 . . . . . . 4 . 9 . . . . . Electromagnetic . | . . . . . . . . . . . . . . . . . . . . . . . . Robot Hit Streak 16 | 8 15 4 . . 16 10 10 . 7 . 8 11 7 4 . 3 . 9 . . . . 8 Robot Miss Streak 5 | 1 4 2 . . 5 5 1 . 5 . 3 4 3 2 . 1 . 3 . . . . 4 Penetration Max 2 | . . . . . 1 1 . . . . . . . . . . . 2 . . . . . Secondary Targets 5 | . 1 . . . 3 1 . . . . . . . . . . . . . . . . . Max Gunslinging Chain 1 | . 1 . . . 1 1 . . . . . . . . . . . . . . . . . Shots Hit Robots 899 | 12 55 11 . . 299 128 10 . 71 . 26 58 20 14 7 23 . 79 8 12 3 9 54 Core Hits 453 | 5 28 13 . . 112 61 3 . 59 . 10 30 6 8 2 13 . 60 4 7 1 4 27 Critical Kills 21 | . . . . . 1 . . . 3 . . . . . . . . 17 . . . . . Critical Parts Destroyed 16 | . 1 . . . 1 . . . . . . . . . . . . 14 . . . . . Critical Strikes 88 | . 1 . . . 16 11 . . 8 . 1 4 . . . . . 34 1 2 . 2 8 Meltdown 5 | . . . . . 1 . . . 3 . . . . . . . . 1 . . . . . Destroy 32 | . 1 . . . 1 . . . . . . . . . . . . 30 . . . . . Blast 31 | . . . . . 14 10 . . 2 . 1 4 . . . . . . . . . . . Sever 20 | . . . . . . 1 . . 3 . . . . . . . . 3 1 2 . 2 8 Melee Attacks 271 | . . . . . . 2 . . 41 . . . . 9 14 52 . 39 11 19 3 12 69 Impact . | . . . . . . . . . . . . . . . . . . . . . . . . Slashing 269 | . . . . . . 2 . . 40 . . . . 9 14 51 . 39 11 19 3 12 69 Piercing . | . . . . . . . . . . . . . . . . . . . . . . . . Sneak Attacks 47 | . . . . . . 1 . . 8 . . . . 9 3 9 . 5 . 1 . 1 10 Combat Hostiles 1 | . . . . . . . . . . . . . . . . . . . . 1 . . . Follow-up Attacks 5 | . . . . . . . . . . . . . . . . . . 4 . 1 . . . Damage Inflicted 32912 | 147 741 343 . . 6908 3770 171 . 4653 . 1046 2196 881 1138 560 2050 . 3650 255 649 389 555 2810 Guns 5488 | 147 741 91 . . 2646 1269 171 . . . . . . . . . . 423 . . . . . Cannons 11221 | . . . . . 3613 1350 . . 1617 . 920 2196 881 176 . . . 188 . . . . 280 Explosions 6294 | . . 252 . . 629 1090 . . 1869 . 126 . . . 112 538 . 1678 . . . . . Melee 9889 | . . . . . . 61 . . 1167 . . . . 962 448 1512 . 1361 255 649 389 555 2530 Ramming 20 | . . . . . 20 . . . . . . . . . . . . . . . . . . Kinetic 12928 | 147 741 91 . . 5448 2619 171 . 1050 . 555 1122 455 106 . . . 423 . . . . . Thermal 4779 | . . . . . 811 . . . 567 . 491 1074 426 70 . 191 . 869 . . . . 280 Explosive 5184 | . . 252 . . 629 1090 . . 1869 . . . . . . 347 . 997 . . . . . Electromagnetic 112 | . . . . . . . . . . . . . . . 112 . . . . . . . . Impact . | . . . . . . . . . . . . . . . . . . . . . . . . Slashing 9889 | . . . . . . 61 . . 1167 . . . . 962 448 1512 . 1361 255 649 389 555 2530 Piercing . | . . . . . . . . . . . . . . . . . . . . . . . . Highest Corruption 17 | . . . . . . . . . 8 . 4 4 4 . 2 . 10 15 17 2 2 2 3 Average Corruption 5 | . . . . . . . . . 5 . 4 4 3 . 1 . 10 12 6 2 2 2 2 Corruption Purged 27 | . . . . . . . . . 8 . . . 4 . . . . . 15 . . . . Corruption Blocked . | . . . . . . . . . . . . . . . . . . . . . . . . Effects 113 | . . . . . . . . . 14 . 2 20 10 . . . 3 31 20 7 2 2 2 Message Errors 31 | . . . . . . . . . 3 . . 5 5 . . . 1 6 5 4 1 1 . Matter Fused 30 | . . . . . . . . . 1 . 1 9 2 . . . 1 9 6 . . 1 . Heat Flow Errors 11 | . . . . . . . . . 3 . . 4 1 . . . . . 1 2 . . . Energy Discharges 14 | . . . . . . . . . 2 . . 2 . . . . . 5 3 . . . 2 Parts Rejected 5 | . . . . . . . . . . . 1 . . . . . 1 2 1 . . . . Parts Fused 1 | . . . . . . . . . . . . . . . . . . . 1 . . . . Data Loss (minor) 8 | . . . . . . . . . 3 . . . . . . . . 3 1 . 1 . . Data Loss (major) 7 | . . . . . . . . . 2 . . . 1 . . . . 1 2 1 . . . Misfires 2 | . . . . . . . . . . . . . 1 . . . . 1 . . . . . Alerts 1 | . . . . . . . . . . . . . . . . . . 1 . . . . . Misdirections 2 | . . . . . . . . . . . . . . . . . . 2 . . . . . Weapon Failures 1 | . . . . . . . . . . . . . . . . . . 1 . . . . . Overload Shots . | . . . . . . . . . . . . . . . . . . . . . . . . Overflow Damage 1871 | . . . . . 210 18 . . 159 . 52 8 . 199 61 360 . 183 . 30 233 143 215 Projectiles 250 | . . . . . 130 5 . . 55 . 52 8 . . . . . . . . . . . Explosions 264 | . . . . . 80 13 . . 93 . . . . . . 19 . 59 . . . . . Melee 1357 | . . . . . . . . . 11 . . . . 199 61 341 . 124 . 30 233 143 215 Knockbacks 53 | . . . . . 31 4 . . 10 . 4 4 . . . . . . . . . . . Impact . | . . . . . . . . . . . . . . . . . . . . . . . . Kinetic 48 | . . . . . 27 4 . . 10 . 4 3 . . . . . . . . . . . Secondary 5 | . . . . . 4 . . . . . . 1 . . . . . . . . . . . Self-Inflicted Damage 331 | . . 68 . . 9 47 . . 52 . . . . . 101 54 . . . . . . . Shots 7 | . . 3 . . . 1 . . 1 . . . . . 1 1 . . . . . . . Rammed 2 | . . . . . 2 . . . . . . . . . . . . . . . . . . Targets Rammed 2 | . . . . . 2 . . . . . . . . . . . . . . . . . . Kicked . | . . . . . . . . . . . . . . . . . . . . . . . . Crushed . | . . . . . . . . . . . . . . . . . . . . . . . . Highest Temperature 384 | . 20 . . . 327 80 54 . 384 . 373 312 251 90 124 320 8 89 165 147 4 348 156 Average Temperature 74 | . 9 . . . 76 21 27 . 97 . 127 127 100 47 63 42 4 14 84 20 3 64 101 Received Heat Transfer 3865 | . 222 . . . 1269 774 27 . 360 . 123 154 108 27 75 45 . 549 . 81 . 12 39 Effects 20 | . . . . . 3 . . . 8 . 3 5 . . . . . . . . . 1 . Energy Bleed 3 | . . . . . . . . . . . 1 1 . . . . . . . . . 1 . Interference 13 | . . . . . 3 . . . 5 . 2 3 . . . . . . . . . . . Matter Decay 1 | . . . . . . . . . 1 . . . . . . . . . . . . . . Short Circuit 3 | . . . . . . . . . 2 . . 1 . . . . . . . . . . . Siege Activations . | . . . . . . . . . . . . . . . . . . . . . . . . Robots Corrupted . | . . . . . . . . . . . . . . . . . . . . . . . . Combat Hostiles . | . . . . . . . . . . . . . . . . . . . . . . . . Parts Fried . | . . . . . . . . . . . . . . . . . . . . . . . . Impact Corruptions . | . . . . . . . . . . . . . . . . . . . . . . . . Robots Melted 6 | . . . . . 1 . . . 3 . . 1 . . . . . 1 . . . . . Combat Hostiles 4 | . . . . . . . . . 2 . . 1 . . . . . 1 . . . . . Parts Melted 15 | . . . . . 5 . . . 5 . 1 2 . . . . . 2 . . . . . Heat Transferred 5299 | . . . . . 1628 . . . 592 . 470 1073 444 74 . 100 . 585 . . . . 333 Parts Sabotaged . | . . . . . . . . . . . . . . . . . . . . . . . . Parts Stolen . | . . . . . . . . . . . . . . . . . . . . . . . . Parts Stripped . | . . . . . . . . . . . . . . . . . . . . . . . . Power Chain Reactions 1 | . . . . . . . . . . . . . . . 1 . . . . . . . . Alert | -11 -10 -10 -10 -9 -8 -8 -8 -8 -6 -6 -6 -6 -6 -6 -6 -5 -5 -5 -5 -5 -5 -4 -4 ------- Run | Yrd Mat Min Exi Min Mat Sto Rec Scr Fac Was Fac Ext Cet Arc Hub Fac Was Fac Upp Upp Zhi Pro Fac Peak Influence 1504 | 20 188 36 . . 1157 1504 597 . 767 250 495 955 784 561 1047 725 282 812 . . . . 102 Initial 553 | . 13 33 . . . 354 553 . . 234 . 232 523 233 196 507 252 197 . . . . 2 Average 414 | 6 82 18 . . 659 908 491 . 394 146 232 548 638 510 549 410 265 484 . . . . 59 Maximum Alert Level 4 | . . . . . 4 4 2 . 3 1 2 3 3 2 3 3 1 3 . . . . . Low Security (%) 35 | 100 100 100 . 100 9 . . . 27 63 34 . . . 4 . . 6 . . . . 100 Level 1 17 | . . . . . 23 9 16 . 10 36 55 32 . 7 12 51 100 29 . . . . . Level 2 28 | . . . . . 6 38 83 . 57 . 9 45 84 92 77 46 . 48 . . . . . Level 3 12 | . . . . . 50 4 . . 3 . . 21 15 . 4 1 . 15 . . . . . Level 4 6 | . . . . . 10 48 . . . . . . . . . . . . . . . . . Level 5 . | . . . . . . . . . . . . . . . . . . . . . . . . High Security . | . . . . . . . . . . . . . . . . . . . . . . . . Max Security . | . . . . . . . . . . . . . . . . . . . . . . . . Sterilizations 1 | . . . . . 1 . . . . . . . . . . . . . . . . . . Squads Dispatched 87 | . 4 . . . 10 11 . . 17 . 4 3 . . 11 10 . 14 . . . . 3 Investigation 36 | . 4 . . . 2 3 . . 8 . 1 1 . . 7 7 . 2 . . . . 1 Extermination 6 | . . . . . . . . . 3 . . . . . . . . 2 . . . . 1 Reinforcement 27 | . . . . . 6 2 . . 5 . 3 . . . 2 3 . 5 . . . . 1 Assault 13 | . . . . . 2 6 . . . . . 2 . . 1 . . 2 . . . . . Garrison 5 | . . . . . . . . . 1 . . . . . 1 . . 3 . . . . . Intercept . | . . . . . . . . . . . . . . . . . . . . . . . . Searches Triggered . | . . . . . . . . . . . . . . . . . . . . . . . . Construction Impeded 11 | . . . . . 2 1 . . 2 . 1 . . . 1 1 . 3 . . . . . Haulers Reinforced 7 | . . . . . . . . . 2 . 1 . . . . 2 . 2 . . . . . Active Scanning Responses . | . . . . . . . . . . . . . . . . . . . . . . . . Cargo Convoy Interrupts 1 | . . . . . . . . . 1 . . . . . . . . . . . . . . Stealth | -11 -10 -10 -10 -9 -8 -8 -8 -8 -6 -6 -6 -6 -6 -6 -6 -5 -5 -5 -5 -5 -5 -4 -4 --------- Run | Yrd Mat Min Exi Min Mat Sto Rec Scr Fac Was Fac Ext Cet Arc Hub Fac Was Fac Upp Upp Zhi Pro Fac Distress Signals 24 | . 2 . . . 5 2 . . 2 . 2 3 2 . 2 3 . 1 . . . . . Communications Jammed . | . . . . . . . . . . . . . . . . . . . . . . . . Distress Signals . | . . . . . . . . . . . . . . . . . . . . . . . . Times Spotted 441 | . 9 10 . . 82 57 2 . 44 5 17 27 11 4 38 21 6 59 2 8 . 8 31 Peak Tracking Total 16 | . 2 3 . . 9 11 1 . 14 2 4 10 5 2 15 7 6 16 2 4 . 4 15 Tactical Retreats 41 | . . 3 . . 3 3 . . 5 . 1 1 . . 1 5 1 13 . 1 . 2 2 Traps | -11 -10 -10 -10 -9 -8 -8 -8 -8 -6 -6 -6 -6 -6 -6 -6 -5 -5 -5 -5 -5 -5 -4 -4 ------- Run | Yrd Mat Min Exi Min Mat Sto Rec Scr Fac Was Fac Ext Cet Arc Hub Fac Was Fac Upp Upp Zhi Pro Fac Traps Triggered 17 | . 5 . . . 3 2 . . 1 . 1 . . . . 3 . 2 . . . . . Indirectly . | . . . . . . . . . . . . . . . . . . . . . . . . Trap Hack Attempts . | . . . . . . . . . . . . . . . . . . . . . . . . Triggered . | . . . . . . . . . . . . . . . . . . . . . . . . Disarmed . | . . . . . . . . . . . . . . . . . . . . . . . . Reprogrammed 5 | . . . . . . 1 . . . . . . . . . . . 4 . . . . . Reused 2 | . . . . . . . . . . . . . . . . . . 2 . . . . . Traps Extracted . | . . . . . . . . . . . . . . . . . . . . . . . . Installed . | . . . . . . . . . . . . . . . . . . . . . . . . Triggered 2 | . . . . . . . . . . . . . . . . . . 2 . . . . . Machines | -11 -10 -10 -10 -9 -8 -8 -8 -8 -6 -6 -6 -6 -6 -6 -6 -5 -5 -5 -5 -5 -5 -4 -4 ---------- Run | Yrd Mat Min Exi Min Mat Sto Rec Scr Fac Was Fac Ext Cet Arc Hub Fac Was Fac Upp Upp Zhi Pro Fac Machines Disabled 49 | . . . . . 5 6 . . 6 . 4 1 1 2 14 2 . 7 . 1 . . . Max in Single Turn 11 | . . . . . 1 2 . . 1 . 2 . . . 11 1 . 6 . 1 . . . Garrison Access 6 | . . . . . 1 1 . . 1 . . . . . 2 1 . . . . . . . Network Hub 2 | . . . . . . . . . . . . . . . 2 . . . . . . . . Machines Repaired . | . . . . . . . . . . . . . . . . . . . . . . . . Machines Dismantled . | . . . . . . . . . . . . . . . . . . . . . . . . Machines Sabotaged 1 | . . . . . . . . . . . . . . . 1 . . . . . . . . Overloaded Fab Kills 4 | . . . . . . . . . 4 . . . . . . . . . . . . . . Hacking | -11 -10 -10 -10 -9 -8 -8 -8 -8 -6 -6 -6 -6 -6 -6 -6 -5 -5 -5 -5 -5 -5 -4 -4 --------- Run | Yrd Mat Min Exi Min Mat Sto Rec Scr Fac Was Fac Ext Cet Arc Hub Fac Was Fac Upp Upp Zhi Pro Fac Machines Accessed 98 | . 8 1 1 . 10 11 5 2 12 . 2 12 1 . 7 13 . 7 . . 4 . 2 Terminals 58 | . 5 . . . 7 9 4 . 5 . 1 12 1 . 6 4 . 4 . . . . . Fabricators 8 | . . . . . . . . . 2 . . . . . . 5 . . . . . . 1 Repair Stations 5 | . 1 . . . . . . . . . . . . . . 2 . 1 . . . . 1 Recycling Units 11 | . 2 . . . 1 1 . . 4 . 1 . . . . 1 . 1 . . . . . Scanalyzers 2 | . . . . . 1 . . . . . . . . . . . . 1 . . . . . Garrison Access 5 | . . . . . 1 1 . . 1 . . . . . 1 1 . . . . . . . Total Hacks 304 | . 22 1 1 . 32 29 28 10 26 . 3 24 1 . 21 51 . 29 . . 17 . 9 Successful 181 | . 10 1 1 . 12 14 18 10 19 . 3 11 1 . 14 34 . 9 . . 17 . 7 Failed 121 | . 12 . . . 20 15 9 . 7 . . 13 . . 7 16 . 20 . . . . 2 Catastrophic 14 | . 3 . . . 4 1 . . . . . 1 . . . 1 . 4 . . . . . Database Lockouts 2 | . . . . . . . 1 . . . . . . . . 1 . . . . . . . Manual 162 | . 15 . . . 19 15 12 . 19 . 2 6 1 . 17 30 . 20 . . . . 6 Terminals 195 | . 17 . . . 25 26 16 . 13 . 2 24 1 . 20 29 . 22 . . . . . Fabricators 31 | . . . . . . . . . 6 . . . . . . 17 . . . . . . 8 Repair Stations 7 | . 2 . . . . . . . . . . . . . . 3 . 1 . . . . 1 Recycling Units 16 | . 3 . . . 1 1 . . 6 . 1 . . . . 1 . 3 . . . . . Scanalyzers 6 | . . . . . 3 . . . . . . . . . . . . 3 . . . . . Garrison Access 8 | . . . . . 3 2 . . 1 . . . . . 1 1 . . . . . . . Terminal Hacks 105 | . 5 1 1 . 6 8 16 10 6 . 1 8 1 . 5 15 . 5 . . 17 . . Record 24 | . 1 . 1 . . . 12 5 . . . . . . . . . . . . 5 . . Part Schematic 7 | . . . . . . . 1 . . . . . . . . 2 . . . . 4 . . Robot Analysis 15 | . 3 . . . . 1 1 5 1 . . . . . . . . . . . 4 . . Prototype ID Bank 13 | . 1 . . . 1 1 . . 1 . 1 . . . . 4 . . . . 4 . . Open Door 11 | . . 1 . . . 2 . . . . . 7 1 . . . . . . . . . . Level Access Points 2 | . . . . . . . . . . . . . . . 1 1 . . . . . . . Branch Access Points 4 | . . . . . 1 . . . 1 . . . . . . 1 . 1 . . . . . Emergency Access Points 1 | . . . . . . . . . . . . . . . 1 . . . . . . . . Terminal Index 4 | . . . . . . 1 . . 1 . . . . . 1 1 . . . . . . . Repair Station Index 1 | . . . . . . . . . 1 . . . . . . . . . . . . . . Alert Level 4 | . . . . . . 1 1 . . . . 1 . . . 1 . . . . . . . Unreport Threat 10 | . . . . . 3 1 . . . . . . . . 2 2 . 2 . . . . . Locate Traps 1 | . . . . . . . . . . . . . . . . . . 1 . . . . . Reprogram Traps 2 | . . . . . . 1 . . . . . . . . . . . 1 . . . . . Recall Reinforcements 1 | . . . . . . . . . 1 . . . . . . . . . . . . . . Hauler Manifests 2 | . . . . . 1 . . . . . . . . . . 1 . . . . . . . Zone Layout 3 | . . . . . . . 1 . . . . . . . . 2 . . . . . . . Fabricator Hacks 11 | . . . . . . . . . 2 . . . . . . 6 . . . . . . 3 Network Status 3 | . . . . . . . . . 1 . . . . . . 1 . . . . . . 1 Load Schematic 6 | . . . . . . . . . 1 . . . . . . 4 . . . . . . 1 Build 2 | . . . . . . . . . . . . . . . . 1 . . . . . . 1 Repair Station Hacks . | . . . . . . . . . . . . . . . . . . . . . . . . Recycling Unit Hacks . | . . . . . . . . . . . . . . . . . . . . . . . . Scanalyzer 3 | . . . . . 2 . . . . . . . . . . . . 1 . . . . . Insert Component 2 | . . . . . 1 . . . . . . . . . . . . 1 . . . . . Analyze 1 | . . . . . 1 . . . . . . . . . . . . . . . . . . Garrison Access Hacks 5 | . . . . . 1 1 . . 1 . . . . . 1 1 . . . . . . . Seal Access 5 | . . . . . 1 1 . . 1 . . . . . 1 1 . . . . . . . Unauthorized Hacks 57 | . 5 . . . 3 5 2 . 10 . 2 3 . . 8 12 . 3 . . . . 4 Terminals 27 | . 2 . . . 2 4 2 . 2 . 1 3 . . 8 2 . 1 . . . . . Track 1 | . . . . . . 1 . . . . . . . . . . . . . . . . . Assimilate 1 | . . . . . . . . . 1 . . . . . . . . . . . . . . Botnet 18 | . 2 . . . 2 2 2 . 1 . 1 3 . . 2 2 . 1 . . . . . Disrupt 1 | . . . . . . 1 . . . . . . . . . . . . . . . . . Operators 1 | . . . . . . . . . . . . . . . 1 . . . . . . . . Sabotage 5 | . . . . . . . . . . . . . . . 5 . . . . . . . . Fabricators 14 | . . . . . . . . . 4 . . . . . . 7 . . . . . . 3 Report 3 | . . . . . . . . . 1 . . . . . . 1 . . . . . . 1 Prioritize 2 | . . . . . . . . . . . . . . . . 1 . . . . . . 1 Haulers 3 | . . . . . . . . . 1 . . . . . . 1 . . . . . . 1 Overload 1 | . . . . . . . . . 1 . . . . . . . . . . . . . . Recompile 5 | . . . . . . . . . 1 . . . . . . 4 . . . . . . . Repair Stations 12 | . 1 . . . . . . . 4 . 1 . . . . 3 . 2 . . . . 1 Patch 5 | . 1 . . . . . . . . . . . . . . 2 . 1 . . . . 1 Recycling Units 4 | . 2 . . . 1 1 . . . . . . . . . . . . . . . . . Tunnel 4 | . 2 . . . 1 1 . . . . . . . . . . . . . . . . . Scrapoids 7 | . . . . . . . . . 4 . 1 . . . . 1 . 1 . . . . . Scanalyzers . | . . . . . . . . . . . . . . . . . . . . . . . . Garrison Access . | . . . . . . . . . . . . . . . . . . . . . . . . Data Cores Recovered 3 | . . . . . . 1 . . 2 . . . . . . . . . . . . . . Used 1 | . . . . . . . . . 1 . . . . . . . . . . . . . . Hacking Detections 62 | . 6 . . . 9 8 3 . 8 . 1 9 1 . 5 6 . 5 . . . . 1 Full Trace Events 7 | . . . . . 2 1 1 . 1 . . 1 . . 1 . . . . . . . . Feedback Events 1 | . . . . . . . . . 1 . . . . . . . . . . . . . . Corruption 1 | . . . . . . . . . 1 . . . . . . . . . . . . . . Feedback Blocked . | . . . . . . . . . . . . . . . . . . . . . . . . Robot Schematics Acquired . | . . . . . . . . . . . . . . . . . . . . . . . . Robots Built . | . . . . . . . . . . . . . . . . . . . . . . . . Authchips . | . . . . . . . . . . . . . . . . . . . . . . . . Time . | . . . . . . . . . . . . . . . . . . . . . . . . Total Robot Build Rating . | . . . . . . . . . . . . . . . . . . . . . . . . Part Schematics Acquired 8 | . . . . . 1 . 1 . . . . . . . . 2 . . . . 4 . . Parts Built 2 | . . . . . . . . . . . . . . . . 1 . . . . . . 1 Authchips 2 | . . . . . . . . . . . . . . . . 1 . . . . . . 1 Time 104 | . . . . . . . . . . . . . . . . 51 . . . . . . 53 Total Part Build Rating 14 | . . . . . . . . . . . . . . . . 8 . . . . . . 6 Parts Repaired . | . . . . . . . . . . . . . . . . . . . . . . . . Time . | . . . . . . . . . . . . . . . . . . . . . . . . Parts Recycled . | . . . . . . . . . . . . . . . . . . . . . . . . Recycled Matter . | . . . . . . . . . . . . . . . . . . . . . . . . Retrieved Matter . | . . . . . . . . . . . . . . . . . . . . . . . . Retrieved Components . | . . . . . . . . . . . . . . . . . . . . . . . . Parts Scanalyzed 2 | . . . . . 1 . . . . . . . . . . . . 1 . . . . . Part Schematics Acquired 1 | . . . . . 1 . . . . . . . . . . . . . . . . . . Parts Damaged . | . . . . . . . . . . . . . . . . . . . . . . . . Bothacking | -11 -10 -10 -10 -9 -8 -8 -8 -8 -6 -6 -6 -6 -6 -6 -6 -5 -5 -5 -5 -5 -5 -4 -4 ------------ Run | Yrd Mat Min Exi Min Mat Sto Rec Scr Fac Was Fac Ext Cet Arc Hub Fac Was Fac Upp Upp Zhi Pro Fac Used RIF Installer . | . . . . . . . . . . . . . . . . . . . . . . . . Robots Hacked 2 | . . . . . . . . . 1 . . . . . . 1 . . . . . . . Non-combat 2 | . . . . . . . . . 1 . . . . . . 1 . . . . . . . Combat . | . . . . . . . . . . . . . . . . . . . . . . . . Robot Hacks Applied 2 | . . . . . . . . . 1 . . . . . . 1 . . . . . . . find_chute 2 | . . . . . . . . . 1 . . . . . . 1 . . . . . . . Relay Couplers Released 1 | . . . . . . . . . . . . . . . 1 . . . . . . . . Machine Destruction 1 | . . . . . . . . . . . . . . . 1 . . . . . . . . Fabnet Peak Effective % . | . . . . . . . . . . . . . . . . . . . . . . . . Robots Rewired 12 | . . . . . . . . . 1 . . 11 . . . . . . . . . . . Allies Hacked . | . . . . . . . . . . . . . . . . . . . . . . . . Hacks Repelled . | . . . . . . . . . . . . . . . . . . . . . . . . Allies | -11 -10 -10 -10 -9 -8 -8 -8 -8 -6 -6 -6 -6 -6 -6 -6 -5 -5 -5 -5 -5 -5 -4 -4 -------- Run | Yrd Mat Min Exi Min Mat Sto Rec Scr Fac Was Fac Ext Cet Arc Hub Fac Was Fac Upp Upp Zhi Pro Fac Total Allies 97 | . . . . 1 . 12 . 1 22 20 5 21 5 . . 5 . 5 . . . . . Largest Group 22 | . . . . 1 . 10 . 1 10 22 7 20 21 19 18 5 . 5 . . . . . Highest-Rated Group 1063 | . . . . 31 . 173 . 77 283 768 303 732 1063 993 843 235 . 235 . . . . . Highest-Rated Ally 159 | . . . . 31 . 31 . 77 77 75 77 159 159 150 96 47 . 47 . . . . . Total Orders 4 | . . . . . . . . . 2 . 2 . . . . . . . . . . . . STAY 3 | . . . . . . . . . 2 . 1 . . . . . . . . . . . . ROAM 1 | . . . . . . . . . . . 1 . . . . . . . . . . . . Ally Attacks 982 | . . . . . . 116 . . 153 193 92 99 119 24 110 47 . 29 . . . . . Total Damage 25844 | . . . . . . 1541 . . 3439 8499 1865 2081 2229 523 3837 1009 . 821 . . . . . Kills 135 | . . . . . . 21 . . 23 17 20 9 8 4 22 8 . 3 . . . . . Allies Corrupted 5 | . . . . . . . . . . . . . . . 5 . . . . . . . . Allies Melted . | . . . . . . . . . . . . . . . . . . . . . . . . Intel | -11 -10 -10 -10 -9 -8 -8 -8 -8 -6 -6 -6 -6 -6 -6 -6 -5 -5 -5 -5 -5 -5 -4 -4 ------- Run | Yrd Mat Min Exi Min Mat Sto Rec Scr Fac Was Fac Ext Cet Arc Hub Fac Was Fac Upp Upp Zhi Pro Fac Robot Analysis Total 15 | . 3 . . . . 1 1 5 1 . . . . . . . . . . . 4 . . Derelict Logs Recovered 10 | . . 1 . 2 . . . . . . . . . . . . . . 2 2 . 3 . Drone Launches . | . . . . . . . . . . . . . . . . . . . . . . . . Drone Recoveries . | . . . . . . . . . . . . . . . . . . . . . . . . Exploration | -11 -10 -10 -10 -9 -8 -8 -8 -8 -6 -6 -6 -6 -6 -6 -6 -5 -5 -5 -5 -5 -5 -4 -4 ------------- Run | Yrd Mat Min Exi Min Mat Sto Rec Scr Fac Was Fac Ext Cet Arc Hub Fac Was Fac Upp Upp Zhi Pro Fac Turns Passed 22151 | 131 1105 1429 251 950 2896 1612 795 3436 1647 553 545 1050 528 332 284 763 90 903 797 686 134 435 799 Spaces Moved 16831 | 59 600 515 157 582 1313 767 444 1972 1726 447 447 769 180 216 576 1410 157 822 1100 1111 192 682 587 Core 8 | 2 . . . . . . . . . . . . . . . . . . . . . . 6 Treads 6248 | 57 600 515 157 582 1150 767 444 1972 . . . . . . . . . 4 . . . . . Legs 2980 | . . . . . . . . . 736 447 447 769 180 133 . . . 5 . . . . 263 Wheels 254 | . . . . . 163 . . . . . . . . . . . . 87 . . . . 4 Hover 7341 | . . . . . . . . . 990 . . . . 83 576 1410 157 726 1100 1111 192 682 314 Flight . | . . . . . . . . . . . . . . . . . . . . . . . . Fastest Speed 30 | 50 160 160 160 160 105 151 170 170 30 90 90 90 90 40 40 36 40 40 48 43 43 43 36 Average Speed 97 | 156 160 160 160 160 153 155 170 170 58 90 90 90 90 82 40 39 40 58 48 48 48 43 80 Slowest Speed 520 | 160 160 160 160 160 163 250 170 170 250 90 90 90 90 510 40 40 40 320 56 52 52 43 520 Overloaded Moves . | . . . . . . . . . . . . . . . . . . . . . . . . Propulsion Burnouts . | . . . . . . . . . . . . . . . . . . . . . . . . Robots Hopped . | . . . . . . . . . . . . . . . . . . . . . . . . Cave-ins Triggered . | . . . . . . . . . . . . . . . . . . . . . . . . Exploration Rate (%) 66 | 4 85 76 53 98 98 97 79 92 37 95 11 83 69 88 42 35 98 27 90 93 60 76 18 Regions Visited 23 Branch Regions 14 Pre-discovered Areas 11 | . 2 . 1 1 1 2 . . . . . . . . . . . . 1 . 3 . . Known Exits Taken 11 | . . . . . 1 . . . . . 1 1 1 1 1 . . 1 1 1 1 1 . Unknown Exits Taken 8 | 1 1 1 1 1 . 1 1 1 . . . . . . . . . . . . . . . Scrap Searched 12 | . . 2 . 2 . . . 2 . . . . . . . . . . 2 3 . 1 . Spaces Dug 95 | . . 15 . . 5 2 . . 17 . 7 1 . . 3 23 . 10 . 3 . 4 5 Terrain Destroyed 721 | . . 88 . . 131 84 . . 30 . 22 27 4 2 181 47 . 85 . 3 . 9 8 Melee 55 | . . . . . . . . . 11 . . . . . 3 22 . 9 . 3 . 2 5 Projectile 173 | . . . . . 60 30 . . 19 . 14 27 4 2 . 5 . 2 . . . 7 3 AOE 493 | . . 88 . . 71 54 . . . . 8 . . . 178 20 . 74 . . . . . Terrain Rammed . | . . . . . . . . . . . . . . . . . . . . . . . . Walls Destroyed . | . . . . . . . . . . . . . . . . . . . . . . . . Machines Disabled . | . . . . . . . . . . . . . . . . . . . . . . . . Actions | -11 -10 -10 -10 -9 -8 -8 -8 -8 -6 -6 -6 -6 -6 -6 -6 -5 -5 -5 -5 -5 -5 -4 -4 --------- Run | Yrd Mat Min Exi Min Mat Sto Rec Scr Fac Was Fac Ext Cet Arc Hub Fac Was Fac Upp Upp Zhi Pro Fac Total 20996 | 76 660 1089 157 600 1816 1002 477 2063 2217 604 544 1034 518 347 604 1533 183 1103 1350 1223 227 794 775 Wait 2519 | 2 3 543 . 17 145 82 28 53 267 134 53 149 308 87 10 25 26 104 231 84 14 84 70 Move 16810 | 58 599 514 156 581 1312 766 443 1971 1726 446 446 768 179 215 575 1410 156 821 1099 1110 191 681 587 Hop . | . . . . . . . . . . . . . . . . . . . . . . . . Pick Up 142 | . 6 6 1 1 28 3 . 16 21 9 7 4 7 1 . 9 . 8 1 3 3 2 6 Fast Attach 148 | 7 7 . . . 19 10 . 3 25 . 3 4 . 6 . 11 1 19 6 3 7 2 15 Attach 63 | . . 1 . . 7 1 . 1 18 . . . 2 1 . 6 . 10 2 1 . 1 12 Detach 15 | . . . . . . 1 . . 7 . . . . 1 . . . 4 . 1 . 1 . Swap 99 | . 2 4 . 1 30 13 . 1 14 1 3 2 3 9 3 9 . 3 . . . . 1 Drop 186 | . 2 . . . 40 13 . 18 32 14 3 8 5 14 . 9 . 8 1 3 9 4 3 Fire 691 | 9 41 21 . . 233 111 6 . 63 . 29 52 14 4 2 9 . 78 . . . 7 12 Melee 258 | . . . . . . 2 . . 41 . . . . 9 14 45 . 35 10 18 3 12 69 Ram 1 | . . . . . 1 . . . . . . . . . . . . . . . . . . Kick . | . . . . . . . . . . . . . . . . . . . . . . . . Crush 1 | . . . . . 1 . . . . . . . . . . . . . . . . . . Escape Stasis 13 | . . . . . . . . . . . . . . . . . . 13 . . . . . Rewire 50 | . . . . . . . . . 3 . . 47 . . . . . . . . . . . Trap . | . . . . . . . . . . . . . . . . . . . . . . . . Miscellaneous . | . . . . . . . . . . . . . . . . . . . . . . . . Route ------- -11/Scrapyard -10/Materials (discovered 5 exits: [*Mat x3] / *Min / [*Sub]) -10/Mines (discovered 3 exits: [*Mat x2] / *Exi) -10/Exiles -9/Mines (discovered 2 exits: *Mat x2) -8/Materials (discovered 4 exits: [*Fac x3] / *Sto) -8/Storage (discovered 2 exits: [*Fac] / *Rec) -8/Recycling (discovered 2 exits: *Fac / *Scr) -8/Scraptown (discovered 2 exits: *Fac x2) -6/Factory (discovered 4 exits: Low x2 / Ext x2) -6/Waste -6/Factory -6/Extension (discovered 2 exits: *Fac / *Cet) -6/Cetus (discovered 2 exits: *Fac / *Arc) -6/Archives (discovered 3 exits: *Fac / *Hub x2) -6/Hub_04(d) (discovered 4 exits: *Fac x4) -5/Factory (discovered 6 exits: Fac x4 / *Upp x2) -5/Waste -5/Factory (discovered 2 exits: *Upp x2) -5/Upper Caves -5/Upper Caves (discovered 2 exits: *Fac / *Zhi) -5/Zhirov -4/Proximity Caves -4/Factory (discovered 2 exits: *Res / *Arm) History --------- Turn | Location | Event 45 | -11/Scrapyard | Discovered new exit (range 14) 132 | -11/Scrapyard | Entered Materials 272 | -10/Materials | Discovered new exit (range 15) 304 | -10/Materials | Build established: Mutant 621 | -10/Materials | Discovered new exit (range 5) 678 | -10/Materials | Discovered new exit (range 9) 952 | -10/Materials | Discovered new exit (range 3) 1108 | -10/Materials | Discovered new exit (range 16) 1237 | -10/Materials | Entered Mines 1241 | -10/Mines | YI-UF0 nonchalantly dropped a Grenade Launcher on the ground 1250 | -10/Mines | Assembled infested the area 1401 | -10/Mines | Discovered new exit (range 15) 1939 | -10/Mines | Learned Materials security intel 2000 | -10/Mines | Discovered new exit (range 12) 2037 | -10/Mines | Deemed a non-threat by the Exiles lab entrance 2038 | -10/Mines | Discovered new exit (range 5) 2156 | -10/Mines | Met a Derelict who couldn't figure out how to use a Trap Extractor 2666 | -10/Mines | Entered Exiles 2705 | -10/Exiles | Met 8R-AWN 2730 | -10/Exiles | Met EX-HEX 2780 | -10/Exiles | Met EX-BIN 2806 | -10/Exiles | Learned location of Zion (-7) 2807 | -10/Exiles | Met EX-DEC 2898 | -10/Exiles | Discovered new exit (range 14) 2917 | -10/Exiles | Entered Mines 2988 | -9/Mines | Found a damaged Exp. Sensor Array with a note attached 2992 | -9/Mines | Found Prototype Device 3052 | -9/Mines | Discovered new exit (range 3) 3055 | -9/Mines | Received a Mining Laser from a helpful Derelict 3173 | -9/Mines | Learned Materials interactive machine intel 3484 | -9/Mines | Discovered new exit (range 13) 3867 | -9/Mines | Entered Materials 3867 | -8/Materials | Evolved 4 slots: Propulsion x2, Utility x2 3869 | -8/Materials | Loaded intel: 18 interactive machine locations 4344 | -8/Materials | Discovered new exit (range 16) 4357 | -8/Materials | Build established: Scavenger-Mutant 5391 | -8/Materials | Build established: Mutant 5403 | -8/Materials | Identified Exp. Sensor Array 5640 | -8/Materials | Discovered new exit (range 16) 5844 | -8/Materials | Identified exit to Storage 5867 | -8/Materials | First assault squad dispatched 5923 | -8/Materials | Discovered new exit (range 15) 6297 | -8/Materials | Sterilization system engaged 6297 | -8/Materials | Non-combat units ordered to evacuate 6397 | -8/Materials | Combat units ordered to evacuate 6597 | -8/Materials | Ambient heat levels rising (+10) 6747 | -8/Materials | Ambient heat levels rising (+10) 6763 | -8/Materials | Entered Storage 6913 | -8/Storage | Core integrity fell below 50% 7467 | -8/Storage | Used back door to open Recycling access 7467 | -8/Storage | Discovered new exit (range 5) 7479 | -8/Storage | Assisted by bots powering up and referring to "LRC-V3" 7563 | -8/Storage | First assault squad dispatched 7589 | -8/Storage | Lost 3 allies 7646 | -8/Storage | Discovered new exit (range 15) 7753 | -8/Storage | Build established: Commander-Mutant 8159 | -8/Storage | Met a pair of Derelict thieves 8283 | -8/Storage | Destroyed 8 combat bots 8287 | -8/Storage | Lost 6 allies 8375 | -8/Storage | Entered Recycling 8471 | -8/Recycling | Core integrity fell below 20% 8549 | -8/Recycling | Build established: Mutant 8851 | -8/Recycling | Discovered new exit (range 16) 9127 | -8/Recycling | Scanned before Scraplab entrance 9151 | -8/Recycling | Entered Scraplab 9166 | -8/Recycling | Discovered new exit (range 3) 9170 | -8/Recycling | Entered Scraptown 9519 | -8/Scraptown | Discovered new exit (range 5) 9653 | -8/Scraptown | Visited Cave Peace 9697 | -8/Scraptown | Visited The Evicted 9989 | -8/Scraptown | Visited Junk Repository 10043 | -8/Scraptown | Visited Shadow of the Wyrm 10107 | -8/Scraptown | Visited Comm Corps 10166 | -8/Scraptown | Visited Spacefarers 10245 | -8/Scraptown | Visited Awakened 10297 | -8/Scraptown | Visited UFD Registry 10297 | -8/Scraptown | Registered with UFD as "Alphatorch" 10336 | -8/Scraptown | Visited Curators Association 10391 | -8/Scraptown | Visited Observation Area 10459 | -8/Scraptown | Visited Scrap Suit Storage 10676 | -8/Scraptown | Visited Analyses Database 10719 | -8/Scraptown | Visited Research Penetration Think Tank 10756 | -8/Scraptown | Visited Botcube Research 10764 | -8/Scraptown | Found Botcube 10797 | -8/Scraptown | Visited Junk Repository 10862 | -8/Scraptown | Discovered new exit (range 5) 10993 | -8/Scraptown | Visited Abandonware Association 11012 | -8/Scraptown | Learned abandonware demo "HACKBUD.EXE" 11012 | -8/Scraptown | Learned abandonware demo "ERRANTS.EXE" 11054 | -8/Scraptown | Visited Derelict Rescue Squad 11064 | -8/Scraptown | Found DRS Beacon 11101 | -8/Scraptown | Visited Modified Component R&D 11337 | -8/Scraptown | Found Scrap Suit 12339 | -8/Scraptown | Botcube activated 12359 | -8/Scraptown | Botcube completed mutation into wheeled form, armed with 2 guns. 12606 | -8/Scraptown | Entered Factory 12606 | -6/Factory | Accompanied by 1 ally 12606 | -6/Factory | Evolved 4 slots: Propulsion x2, Utility x2 12985 | -6/Factory | Identified exit to Lower Caves 12985 | -6/Factory | Identified exit to Extension 13059 | -6/Factory | Found Powered Armor 13061 | -6/Factory | Found Powered Armor 13087 | -6/Factory | Scrapoids reinforcements arrived? 13101 | -6/Factory | Build established: Hacker-Sprinter 13205 | -6/Factory | Cargo convoy interrupted 13248 | -6/Factory | Scrapoids reinforcements arrived? 13285 | -6/Factory | Lost 5 parts (3n2u) 13323 | -6/Factory | Lost 5 allies 13330 | -6/Factory | Found Botcube 13544 | -6/Factory | Build established: Mutant 13697 | -6/Factory | Found Prototype Launcher 13697 | -6/Factory | Identified Scatter Rocket Array 14140 | -6/Factory | Scrapoid reinforcements arrived 14141 | -6/Factory | Scrapoids reinforcements arrived? 14155 | -6/Factory | Garrison activated, responded to threat 14196 | -6/Factory | Lost 6 allies 14253 | -6/Factory | Sucked down chute 14253 | -6/Factory | Entered Waste 14267 | -6/Waste | Warlord forces began an assault 14328 | -6/Waste | 3 allies followed down the chute 14356 | -6/Waste | Spotted C-40 Crusher 14362 | -6/Waste | Spotted C-40 Crusher 14370 | -6/Waste | Allies destroyed C-40 Crusher 14372 | -6/Waste | Allies destroyed C-40 Crusher 14398 | -6/Waste | Spotted C-40 Crusher 14403 | -6/Waste | Lost 3 allies 14409 | -6/Waste | Allies destroyed C-40 Crusher 14413 | -6/Waste | Spotted C-40 Crusher 14416 | -6/Waste | Spotted C-40 Crusher 14421 | -6/Waste | Allies destroyed C-40 Crusher 14423 | -6/Waste | Allies destroyed C-40 Crusher 14453 | -6/Waste | Lost 8 allies 14470 | -6/Waste | Discovered new exit (range 11) 14471 | -6/Waste | Build established: Hacker-Mutant 14532 | -6/Waste | Found Scrap Suit 14694 | -6/Waste | Botcube activated 14710 | -6/Waste | Botcube completed mutation into legged form, armed with 1 gun, 1 cannon. 14776 | -6/Waste | Identified exit to Factory 14806 | -6/Waste | Entered Factory 14806 | -6/Factory | Accompanied by 7 allies 15161 | -6/Factory | Lost 3 allies 15198 | -6/Factory | Scrapoids reinforcements arrived? 15238 | -6/Factory | Discovered exit to Extension (range 15) 15351 | -6/Factory | Entered Extension 15351 | -6/Extension | Accompanied by 2 allies 15372 | -6/Extension | Lost 3 allies 15454 | -6/Extension | Rescued a captive Derelict 15478 | -6/Extension | Rescued a captive Derelict 15482 | -6/Extension | Rescued a captive Derelict 15546 | -6/Extension | Rescued a captive Derelict 15547 | -6/Extension | Rescued a captive Derelict 15639 | -6/Extension | Rescued A7 15935 | -6/Extension | Spotted B-75 Beast 15959 | -6/Extension | Destroyed B-75 Beast 16003 | -6/Extension | Spotted B-75 Beast 16014 | -6/Extension | Destroyed B-75 Beast 16097 | -6/Extension | Rescued a captive Derelict 16097 | -6/Extension | Rescued a captive Derelict 16111 | -6/Extension | Rescued a captive Derelict 16296 | -6/Extension | Rescued a captive Derelict 16350 | -6/Extension | Discovered new exit (range 10) 16351 | -6/Extension | Discovered new exit (range 6) 16357 | -6/Extension | Identified exit to Factory 16373 | -6/Extension | Identified exit to Cetus 16401 | -6/Extension | First assault squad dispatched 16401 | -6/Extension | Entered Cetus 16401 | -6/Cetus | Accompanied by 19 allies (A7) 16406 | -6/Cetus | Acquired a Cetus Manufacturing Module code from A7 16409 | -6/Cetus | Spotted Cetus Guard 16411 | -6/Cetus | Spotted Cetus Guard 16412 | -6/Cetus | Spotted Cetus Guard 16412 | -6/Cetus | Spotted Cetus Guard 16431 | -6/Cetus | Allies destroyed Cetus Guard 16439 | -6/Cetus | Allies destroyed Cetus Guard 16444 | -6/Cetus | Destroyed Cetus Guard 16452 | -6/Cetus | Allies destroyed Cetus Guard 16460 | -6/Cetus | Lost 4 allies 16478 | -6/Cetus | Build established: Commander-Mutant 16538 | -6/Cetus | Started Cetus Manufacturing Module 16563 | -6/Cetus | Manufactured an Enhanced Grunt 16584 | -6/Cetus | Escorted A7 to Cetus Mainframe 16588 | -6/Cetus | Manufactured an Enhanced Grunt 16613 | -6/Cetus | Manufactured an Enhanced Grunt 16638 | -6/Cetus | Manufactured an Enhanced Grunt 16663 | -6/Cetus | Manufactured an Enhanced Grunt 16680 | -6/Cetus | Discovered new exit (range 15) 16711 | -6/Cetus | Spotted Cetus Guard 16711 | -6/Cetus | Spotted Cetus Guard 16711 | -6/Cetus | Spotted Cetus Guard 16712 | -6/Cetus | Spotted Cetus Guard 16717 | -6/Cetus | Destroyed Cetus Guard 16719 | -6/Cetus | Allies destroyed Cetus Guard 16722 | -6/Cetus | Destroyed Cetus Guard 16734 | -6/Cetus | Allies destroyed Cetus Guard 16744 | -6/Cetus | Discovered exit to Factory (range 15) 16749 | -6/Cetus | Met Revision 17 16893 | -6/Cetus | Identified exit to Archives 16929 | -6/Cetus | Entered Archives 16929 | -6/Archives | Accompanied by 19 allies (A7) 16934 | -6/Archives | Received a hacking code to weaken MAIN.C 16948 | -6/Archives | Core integrity fell below 50% 17050 | -6/Archives | Discovered new exit (range 14) 17102 | -6/Archives | Discovered new exit (range 16) 17172 | -6/Archives | Discovered exit to Factory (range 15) 17217 | -6/Archives | Identified exit to Hub_04(d) 17261 | -6/Archives | Entered Hub_04(d) 17261 | -6/Hub_04(d) | Accompanied by 18 allies 17318 | -6/Hub_04(d) | Discovered exit to Factory (range 2) 17347 | -6/Hub_04(d) | Spotted B-75 Beast 17430 | -6/Hub_04(d) | Build established: Scavenger-Mutant 17471 | -6/Hub_04(d) | Garrison activated, responded to threat 17493 | -6/Hub_04(d) | Network Hub disabled 17501 | -6/Hub_04(d) | Spotted Lightning 17501 | -6/Hub_04(d) | Spotted Lightning 17501 | -6/Hub_04(d) | Spotted Lightning 17531 | -6/Hub_04(d) | Network Hub disabled 17540 | -6/Hub_04(d) | Spotted Lightning 17542 | -6/Hub_04(d) | Spotted Lightning 17544 | -6/Hub_04(d) | Spotted Lightning 17545 | -6/Hub_04(d) | Entered Factory 17545 | -5/Factory | Evolved 2 slots: Propulsion x1, Utility x1 17547 | -5/Factory | Lost 7 allies 17762 | -5/Factory | Fabricated Exp. Sensor Array (x1) 17895 | -5/Factory | Build established: Hacker-Scout 17916 | -5/Factory | Discovered new exit (range 10) 17928 | -5/Factory | Identified exit to Factory 17970 | -5/Factory | Identified exit to Upper Caves 17970 | -5/Factory | Central database locked down 18173 | -5/Factory | Scrapoids reinforcements arrived? 18308 | -5/Factory | Sucked down chute 18308 | -5/Factory | Entered Waste 18318 | -5/Waste | Spotted C-40 Crusher 18320 | -5/Waste | Spotted C-40 Crusher 18323 | -5/Waste | EMP discharged 18323 | -5/Waste | System corruption reached 10% 18325 | -5/Waste | Spotted C-40 Crusher 18350 | -5/Waste | Spotted C-40 Crusher 18360 | -5/Waste | Spotted C-40 Crusher 18362 | -5/Waste | Spotted C-40 Crusher 18375 | -5/Waste | Discovered new exit (range 12) 18385 | -5/Waste | Identified exit to Factory 18398 | -5/Waste | Entered Factory 18758 | -5/Factory | Lost 12 parts (2p6n2u2w) 18916 | -5/Factory | Garrison activated, responded to threat 18995 | -5/Factory | Core integrity fell below 50% 18998 | -5/Factory | First assault squad dispatched 19040 | -5/Factory | Lost 7 parts (4n2u1w) 19078 | -5/Factory | Scrapoids reinforcements arrived? 19127 | -5/Factory | Lost 4 allies 19301 | -5/Factory | Entered Upper Caves 19351 | -5/Upper Caves | Lost 3 parts (2n1u) 19604 | -5/Upper Caves | Identified exit to Upper Caves 20098 | -5/Upper Caves | Entered another Upper Caves area 20103 | -5/Upper Caves | Discovered exit to Factory (range 11) 20119 | -5/Upper Caves | Learned Factory stockpile data 20150 | -5/Upper Caves | Build established: Scout 20158 | -5/Upper Caves | Encountered a Warlord checkpoint 20238 | -5/Upper Caves | Attacked by a delusional Derelict stockpiling parts 20508 | -5/Upper Caves | Attracted the attention of an 0b10 checkpoint 20627 | -5/Upper Caves | Learned Factory machine intel 20709 | -5/Upper Caves | Build established: Gladiator 20751 | -5/Upper Caves | Discovered new exit (range 6) 20753 | -5/Upper Caves | Identified exit to Zhirov 20784 | -5/Upper Caves | Entered Zhirov 20784 | -5/Zhirov | Discovered new exit (range 3) 20790 | -5/Zhirov | Identified exit to Proximity Caves 20798 | -5/Zhirov | Met Zhirov 20809 | -5/Zhirov | Learned location of Quarantine (-3) 20809 | -5/Zhirov | Learned location of Command (-1) 20814 | -5/Zhirov | Zhirov requested help retrieving the SGEMP Prototype 20824 | -5/Zhirov | Found Alien Artifact 20824 | -5/Zhirov | Identified Integrated Reactor 20824 | -5/Zhirov | Installed Integrated Reactor, increased core energy generation (+10) 20834 | -5/Zhirov | Found Alien Artifact 20918 | -5/Zhirov | Entered Proximity Caves 21095 | -4/Proximity Caves | Attracted the attention of an 0b10 checkpoint 21353 | -4/Proximity Caves | Entered Factory 21353 | -4/Factory | Evolved 2 slots: Power x1, Propulsion x1 21354 | -4/Factory | Identified exit to Armory 21356 | -4/Factory | Loaded intel: 299 machine locations 21387 | -4/Factory | Discovered new exit (range 6) 21391 | -4/Factory | Identified exit to Research 21449 | -4/Factory | Fabricated Imp. Powered Armor (x1) 21584 | -4/Factory | Lost 5 parts (3n2u) 21634 | -4/Factory | Core integrity fell below 50% 21668 | -4/Factory | Lost 11 parts (2p3n4u2w) 21938 | -4/Factory | Build established: Scavenger-Assassin 22129 | -4/Factory | Spotted B-86 Titan 22131 | -4/Factory | Core integrity fell below 20% 22152 | -4/Factory | Destroyed by H-77 Assassin with Coil Gun Last Messages --------------- 22130_ K-01 Serf collects debris. 22130_ Impulse Thruster destroyed. 22130_ Penetrated by Slug. 22131_ System corrupted: Energy discharge (-21). 22131_ K-01 Serf collects debris. 22131_ U-05 Engineer lays Concrete. 22132_ Matter Pump disabled. 22132_ U-05 Engineer lays Concrete. 22133_ Slug penetrates Wall. 22133_ K-01 Serf collects debris. 22136_ Antigrav System destroyed. 22136_ Acquired 7 matter. 22145_ Imp. Linear Gravjet destroyed. 22149_ System corrupted: Energy discharge (-20). 22149_ Slug penetrates Wall. 22150_ Penetrated by Slug. 22150_ Slug penetrates G-67 Veteran. 22150_ Power Sword destroyed. 22152_ Antigrav System destroyed. 22152_ Slug penetrates Wall. Map ----- +----------------------------------------------------+ | ?????"""?????????????????????????????????????????? | | ?"""??G"?????????????????????????????????????????? | | ?"""?"""????????????????"????????????????????????? | | ?"""????????????????????"????????????????????"""?" | | ??""??????????????????!?"????????????????????"""?" | | ??""????????????????????"????????????????????"""?" | | ????????????????????????"????????????????????????? | | ???????######???????????"????????????????????"""?" | | ??????? #?""?""????"????????????????????"""?" | | ?????? #?""S""????"????????????????????"""?" | | ?????? #?""""?????"????????????????????????? | | ??????? +???????????????????????????????????? | | ??????? #???????#?##????????????????????????? | | ???????# #?????"""""""""""""?????????????????? | | ???????# #?????"?" ""?""?"?"?????????????????? | | ???????# #?????"? ???????"???????????????""" | | ???????# #?#######g#########?###???????????""" | | ???????# #?#""""" """""#???????????""" | | ???????# #?#"[[" g "[["#?????????????? | | ???????# #?#"[[ [["#???????????""" | | ???????# #?#"[[ """ """ [["#???????????""" | | ######## ###""" "## ##" """#???????????""" | | #" "# #" "# ????????????? | | + + ????????????? | | + k > Y +?????????????? | | + Y Yh@ g +?????????????? | | #" "# h #" "#?????????????? | | "##########+####""" "##Y ##" """#?????????????? | | # #?#"[[ """ """ [["#?????????????? | | / """ """ #?#"[[ [["#?????????????? | | # """ """ #?#"[[" "[["#?????????????? | | ? """ """ #?#""""" """""#???"""""""???? | | #? / #?#######g#;#;#########???"""""""???? | | ##############?????"? g ???"???????"""""""???? | | #??????" " "" "" "?"???????"""""""???? | | #??????"""""""""""""?????????????????? | | #?????#############??????????????????? | | =% #????????????????????????????????????? | | ! #???????"""?"""?"""??????????????????? | | = #???????"Y"?"""?"""??????????????????? | | % #???????????"""?"""??????????????????? | | * #????????????????????????????????????? | | =%! #???????"""?"""?"""??????????????????? | | %| #???????"""?"""?"""??????????????????? | | !%! #???????"""?"""?"""??????????????????? | | !*% #????????????????????????????????????? | | #####+#########T #???????????????????????????????? | | !%= ?????????????????????????? | | *!= ?????????????????????????? | | ?????????????????????????? | +----------------------------------------------------+ Best States ------------- Heat Dissipation 127 Energy Generation 49 Energy Capacity 365 Matter Stores 300 Matter Capacity 300 Sight Range 20 Robot Scan Range 20 Terrain Scan Density 10 Jamming Range 14 Additional Mass Support 12 Armor Coverage 600 Resistance: EM 15 Evasion (%) 59 Targeting Accuracy 8 Melee Accuracy 14 Recoil Reduction 4 Offensive Hacking 36 Authchip Count 4 Trap Extractor Capacity 6 Item Schematics ----------------- Exp. Sensor Array | -8/Materials | Scanalyzed System Restoration Module | -8/Recycling | Hacked Imp. Powered Armor | -5/Factory | Hacked Adv. Melee Analysis Suite | -5/Factory | Hacked Assault Drone Bay | -5/Zhirov | Free Exp. Heat Sink | -5/Zhirov | Free Exp. Optical Array | -5/Zhirov | Free Imp. Arc Thrower | -5/Zhirov | Free Robot Schematics ------------------ None Fabricated ------------ Exp. Sensor Array | x1 | -5/Factory | Authchip Imp. Powered Armor | x1 | -4/Factory | Authchip Alien Tech Used ----------------- Integrated Reactor Achievements -------------- None Challenges ------------ None Game ------ Seed SuperdenseCompositeCharge Manual? 0 Play Time 03:30:31 Cumulative 376.6 hours Start 2025.03.15 @ 09:31:51 End 2025.03.15 @ 13:11:55 Sessions 1 Manual Loads 0 Difficulty Rogue Special Mode None Game No. 85 Rogue 85 Adventurer 0 Explorer 0 Win Type - Total 24 Types 13/1/6/1/0/0/1/1/1 Lore% 84 Gallery% 83 Achievement% 79 Wizard Run 0 Options --------- Layout 1 ASCII 0 Keyboard 0 Movement Mouse Keybinds 0 Fullscreen 1 Font 24/Smallcaps Map View 50x35 Zoom Use 0% Tactical HUD 1 Map Filters NONE Filters NONE Steam 1 RUN: 75ccba59-8a38-4469-b018-709421c7ddda